Workbook

Sheet Intro
A1: Multi, intro hold
E3: 1 | F3: 2 | G3: 3 | H3: 4 | I3: 5 | J3: 6 | K3: 7 | L3: 8 | M3: 9 | N3: 10 | O3: 11 | P3: 12 | Q3: 13 | R3: 14 | S3: 15 | T3: 16 | V3: Total | X3: Placering
A5: Benny Marquart - Keld Grann | E5: 10.4 | F5: 7.7 | G5: 13.02 | H5: 9.49 | I5: 12.37 | J5: 4.96 | K5: 7.55 | L5: 14.74 | M5: 7.35 | N5: 10.83 | O5: 7.82 | P5: 11.05 | Q5: 8.8 | R5: 13.29 | S5: 9.02 | V5: =AVERAGE(E5:T5) -> 9.892666667 | X5: 8
A6: Lars Tofte - Emil Jepsen | E6: 15.96 | F6: 12.52 | G6: 13.37 | H6: 13.18 | I6: 15.04 | J6: 7.16 | K6: 8.48 | L6: 12.77 | M6: 13.88 | N6: 9.14 | O6: 15.09 | P6: 11.57 | Q6: 12.25 | R6: 15.18 | S6: 3.66 | V6: =AVERAGE(E6:T6) -> 11.95 | X6: 1
A8: Camilla Bo Krefeld - Johan Hammelev | E8: 15.44 | F8: 12.75 | G8: 6.63 | H8: 10.51 | I8: 12.95 | J8: 12.22 | K8: 11.75 | L8: 17.16 | M8: 14.31 | N8: 16.31 | O8: 8.48 | P8: 10.96 | Q8: 3.69 | R8: 14.33 | S8: 10.98 | V8: =AVERAGE(E8:T8) -> 11.898 | X8: 2
A9: Henrik Schmidt - Jesper Bechsgaard | E9: 5.4 | F9: 5.48 | G9: 6.98 | H9: 6.82 | I9: 10.91 | J9: 15.82 | K9: 12.68 | L9: 9.08 | M9: 7.07 | N9: 11.82 | O9: 7.26 | P9: 8.69 | Q9: 4.96 | R9: 15.71 | S9: 16.34 | V9: =AVERAGE(E9:T9) -> 9.668 | X9: 10
A11: Jørgen Cilleborg Hansen - Steen Schou | E11: 2.49 | F11: 7.42 | G11: 11.26 | H11: 12.06 | I11: 4.96 | J11: 15.04 | K11: 8.25 | L11: 10.92 | M11: 5.1 | N11: 11.23 | O11: 3.72 | P11: 6.09 | Q11: 16.11 | R11: 10.69 | S11: 9.74 | V11: =AVERAGE(E11:T11) -> 9.005333333 | X11: 13
A12: H K Sørensen - Niels Henriksen | E12: 14.69 | F12: 10.77 | G12: 11.96 | H12: 9.26 | I12: 7.63 | J12: 12.84 | K12: 7.32 | L12: 2.84 | M12: 6.37 | N12: 15.94 | O12: 10.29 | P12: 0.73 | Q12: 17.48 | R12: 9.54 | S12: 10.23 | V12: =AVERAGE(E12:T12) -> 9.859333333 | X12: 9
A14: Marlene Henneberg - J.O Henneberg | E14: 11.12 | F14: 10.98 | G14: 6.8 | H14: 11.86 | I14: 7.33 | J14: 6.93 | K14: 11.52 | L14: 5.26 | M14: 5.69 | N14: 8.18 | O14: 16.28 | P14: 19.27 | Q14: 12.52 | R14: 17.1 | S14: 14.91 | V14: =AVERAGE(E14:T14) -> 11.05 | X14: 3
A15: Niels Krøjgaard - Lars Peter Damgaard | E15: 3.4 | F15: 10.07 | G15: 19.03 | H15: 11.71 | I15: 7.2 | J15: 12.56 | K15: 12.45 | L15: 7.23 | M15: 12.93 | N15: 3.69 | O15: 9.71 | P15: 13.91 | Q15: 15.87 | R15: 12.68 | S15: 10.07 | V15: =AVERAGE(E15:T15) -> 10.834 | X15: 5
A17: Bas van Engelen - Marlene Holm Christensen | E17: 8.88 | F17: 9.93 | G17: 2.47 | H17: 7.72 | I17: 10.14 | J17: 14.92 | K17: 11.77 | L17: 4.85 | M17: 6.12 | N17: 9.17 | O17: 12.74 | P17: 9.04 | Q17: 2.52 | R17: 9.31 | S17: 9.77 | V17: =AVERAGE(E17:T17) -> 8.623333333 | X17: 16
A18: Jan Pedersen - Mads Krøjgaard | E18: 16.6 | F18: 9.02 | G18: 14.35 | H18: 6.68 | I18: 9.64 | K18: 16.5 | L18: 8.87 | M18: 12.65 | N18: 10.86 | O18: 11.52 | P18: 11.31 | Q18: 3.89 | R18: 10.46 | S18: 10.26 | V18: =AVERAGE(E18:T18) -> 10.90071429 | X18: 4
A20: Henrik Caspersen - Jens Kofoed | E20: 5.31 | F20: 12.58 | G20: 13.2 | H20: 8.29 | I20: 10.36 | J20: 5.08 | K20: 10.42 | L20: 8.81 | M20: 5.71 | N20: 13.82 | O20: 12.18 | P20: 8.43 | Q20: 16.31 | R20: 4.29 | S20: 6.05 | V20: =AVERAGE(E20:T20) -> 9.389333333 | X20: 12
A21: Peter Jepsen - Maika Cilleborg Bilde | E21: 17.51 | F21: 9.23 | G21: 0.97 | H21: 8.14 | I21: 9.86 | K21: 13.28 | L21: 2.77 | M21: 7.68 | N21: 12.34 | O21: 4.91 | P21: 8.95 | Q21: 15.04 | R21: 5.67 | S21: 7.06 | V21: =AVERAGE(E21:T21) -> 8.815 | X21: 14
A23: Morten Stege - Nils Mønsted | E23: 4.56 | F23: 14.52 | G23: 8.74 | H23: 10.74 | I23: 12.8 | J23: 13.07 | K23: 8.23 | L23: 11.13 | M23: 12.32 | N23: 6.18 | O23: 13.88 | P23: 9.46 | Q23: 7.75 | R23: 6.71 | S23: 9.93 | V23: =AVERAGE(E23:T23) -> 10.00133333 | X23: 6
A24: Tom Nørgaard - Trine Bilde | E24: 14.6 | F24: 7.25 | G24: 8.04 | H24: 7.94 | I24: 12.67 | J24: 9.54 | K24: 3.5 | L24: 15.15 | M24: 14.29 | N24: 7.66 | O24: 14.39 | P24: 13.07 | Q24: 11.2 | R24: 4.82 | S24: 5.09 | V24: =AVERAGE(E24:T24) -> 9.947333333 | X24: 7
A26: Rasmus Rask Jepsen - Søren Cilleborg Bilde | E26: 4.04 | F26: 12.3 | G26: 5.65 | H26: 12.28 | I26: 7.05 | J26: 4.17 | K26: 9.58 | L26: 17.23 | M26: 14.9 | N26: 4.06 | O26: 6.12 | P26: 6.93 | Q26: 7.48 | R26: 7.32 | S26: 12.94 | V26: =AVERAGE(E26:T26) -> 8.803333333 | X26: 15
A27: Dennis Bilde - Morten Bilde | E27: 9.6 | F27: 7.48 | G27: 17.53 | H27: 13.32 | I27: 9.09 | J27: 7.78 | K27: 6.72 | L27: 11.19 | M27: 13.63 | N27: 8.77 | O27: 5.61 | P27: 10.43 | Q27: 4.13 | R27: 2.9 | S27: 13.95 | V27: =AVERAGE(E27:T27) -> 9.475333333 | X27: 11

Sheet RR1
A1: Multi, RR1
E3: 1 | F3: 2 | G3: 3 | H3: 4 | I3: 5 | J3: 6 | K3: 7 | L3: 8 | M3: 9 | N3: 10 | O3: 11 | P3: 12 | Q3: 13 | R3: 14 | T3: Total | U3: Placering
A5: Henrik Caspersen - Jens Kofoed | E5: 8.46 | F5: 10.52 | G5: 7.66 | H5: 14.65 | I5: 12.41 | J5: 5.59 | K5: 16.27 | L5: 8.95 | M5: 10.01 | N5: 5.85 | O5: 7.95 | P5: 17.58 | Q5: 13.97 | R5: 9.55 | T5: =AVERAGE(E5:R5) -> 10.67285714 | U5: 8
A6: Marlene Henneberg - J.O Henneberg | E6: 5.99 | F6: 14.36 | G6: 8.24 | H6: 4.12 | I6: 11.53 | J6: 12.73 | K6: 11.25 | L6: 11.17 | M6: 12.24 | N6: 10.72 | O6: 11.45 | P6: 8.92 | Q6: 12.15 | R6: 8.43 | T6: =AVERAGE(E6:R6) -> 10.23571429 | U6: 9
A8: Tom Nørgaard - Trine Bilde | E8: 4.55 | F8: 18.18 | G8: 11.73 | H8: 5.35 | I8: 6.46 | J8: 8.19 | K8: 17.06 | L8: 17.22 | M8: 16.6 | N8: 8.37 | O8: 11.6 | P8: 8.93 | Q8: 10.78 | R8: 5.66 | T8: =AVERAGE(E8:R8) -> 10.76285714 | U8: 6
A9: H K Sørensen - Niels Henriksen | E9: 8.83 | F9: 14.41 | G9: 12.34 | H9: 15.88 | I9: 4.4 | J9: 13.01 | K9: 14.14 | L9: 12.47 | M9: 16.51 | N9: 8.76 | O9: 11.09 | P9: 11.6 | Q9: 14.88 | R9: 6.51 | T9: =AVERAGE(E9:R9) -> 11.77357143 | U9: 1
A11: Benny Marquart - Keld Grann | E11: 5.13 | F11: 6 | G11: 13.42 | H11: 6.16 | I11: 8.47 | J11: 14.41 | K11: 5.86 | L11: 2.8 | M11: 3.78 | N11: 8.99 | O11: 4.29 | P11: 6.13 | Q11: 9.8 | R11: 11.91 | T11: =AVERAGE(E11:R11) -> 7.653571429 | U11: 16
A12: Henrik Schmidt - Jesper Bechsgaard | E12: 7.93 | F12: 5.54 | G12: 6.54 | H12: 9.13 | I12: 7.59 | J12: 7.27 | K12: 2.94 | L12: 7.53 | M12: 8.97 | N12: 7.7 | O12: 3.2 | P12: 15.27 | Q12: 4.05 | R12: 13.74 | T12: =AVERAGE(E12:R12) -> 7.671428571 | U12: 15
A14: Niels Krøjgaard - Lars Peter Damgaard | E14: 15.16 | F14: 11.11 | G14: 7.38 | H14: 4.75 | I14: 14.19 | J14: 7.36 | K14: 3.73 | L14: 8.83 | M14: 3.49 | N14: 11.63 | O14: 15.71 | P14: 4.73 | Q14: 5.2 | R14: 6.98 | T14: =AVERAGE(E14:R14) -> 8.589285714 | U14: 14
A15: Jan Pedersen - Mads Krøjgaard | E15: 16.16 | F15: 10.59 | G15: 14.8 | H15: 16.5 | I15: 9.64 | J15: 14.42 | K15: 8.75 | L15: 11.05 | M15: 3.4 | N15: 11.24 | O15: 16.8 | P15: 13.87 | Q15: 8.68 | R15: 8.54 | T15: =AVERAGE(E15:R15) -> 11.74571429 | U15: 2
A17: Jørgen Cilleborg Hansen - Steen Schou | E17: 4.84 | F17: 9.41 | G17: 13.94 | H17: 8.96 | I17: 7.97 | J17: 9.64 | K17: 5.26 | L17: 6.61 | M17: 7.76 | N17: 14.15 | O17: 8.91 | P17: 11.07 | Q17: 10.2 | R17: 6.26 | T17: =AVERAGE(E17:R17) -> 8.927142857 | U17: 12
A18: Bas van Engelen - Marlene Holm Christensen | E18: 3.84 | F18: 8.89 | G18: 0.23 | H18: 10.7 | I18: 6.36 | J18: 19.01 | K18: 8.18 | L18: 12.21 | M18: 9.99 | N18: 9.28 | O18: 8.4 | P18: 8.4 | Q18: 15.95 | R18: 8.09 | T18: =AVERAGE(E18:R18) -> 9.252142857 | U18: 11
A20: Lars Tofte - Emil Jepsen | E20: 14.87 | F20: 14.46 | G20: 5.2 | H20: 15.25 | I20: 12.03 | J20: 0.99 | K20: 16.45 | L20: 15.04 | M20: 4.29 | N20: 10.23 | O20: 12.05 | P20: 11.08 | Q20: 9.22 | R20: 13.49 | T20: =AVERAGE(E20:R20) -> 11.04642857 | U20: 4
A21: Dennis Bilde - Morten Bilde | E21: 12.07 | F21: 14 | G21: 12.62 | H21: 3.5 | I21: 13.64 | J21: 10.36 | K21: 15.63 | L21: 16.41 | M21: 7.34 | N21: 14.29 | O21: 8.55 | P21: 2.42 | Q21: 5.12 | R21: 14.34 | T21: =AVERAGE(E21:R21) -> 10.735 | U21: 7
A23: Peter Jepsen - Maika Cilleborg Bilde | E23: 15.45 | F23: 5.59 | G23: 13.46 | H23: 13.84 | I23: 5.81 | J23: 5.58 | K23: 11.82 | L23: 13.38 | M23: 12.66 | N23: 9.77 | O23: 4.37 | P23: 5.92 | Q23: 7.85 | R23: 10.45 | T23: =AVERAGE(E23:R23) -> 9.710714286 | U23: 10
A24: Rasmus Rask Jepsen - Søren Cilleborg Bilde | E24: 11.17 | F24: 1.82 | G24: 6.58 | H24: 10.87 | I24: 10.36 | J24: 12.64 | K24: 14.74 | L24: 7.79 | M24: 15.71 | N24: 5.81 | O24: 6.25 | P24: 2.77 | Q24: 6.03 | R24: 11.57 | T24: =AVERAGE(E24:R24) -> 8.865 | U24: 13
A26: Morten Stege - Nils Mønsted | E26: 11.54 | F26: 5.64 | G26: 19.77 | H26: 11.04 | I26: 13.54 | J26: 6.99 | K26: 4.37 | L26: 4.96 | M26: 11.03 | N26: 11.01 | O26: 13.75 | P26: 14.08 | Q26: 14.8 | R26: 11.46 | T26: =AVERAGE(E26:R26) -> 10.99857143 | U26: 5
A27: Camilla Bo Krefeld - Johan Hammelev | E27: 14.01 | F27: 9.48 | G27: 6.06 | H27: 9.3 | I27: 15.6 | J27: 11.81 | K27: 3.55 | L27: 3.59 | M27: 16.22 | N27: 12.3 | O27: 15.63 | P27: 17.23 | Q27: 11.32 | R27: 13.02 | T27: =AVERAGE(E27:R27) -> 11.36571429 | U27: 3

Sheet Imp Par
A1: IMP Par
B4: 1.aften | C4: 2.aften | D4: 3.aften | E4: 4.aften | F4: 5.aften | H4: Sum | I4: Placering
A6: Henrik Caspersen - Jens Kofoed | B6: 274 | C6: 194 | D6: -26 | E6: 462 | F6: 93 | H6: =SUM(B6:F6) -> 997 | I6: 1
A7: Lars Tofte - Emil Jepsen | B7: 134 | C7: 50 | D7: 183 | E7: -72 | F7: 279 | H7: 574 | I7: 2
A8: Jan Pedersen - Mads Krøjgaard | B8: 140 | C8: 274 | D8: 19 | E8: 421 | F8: -332 | H8: 522 | I8: 3
A9: Dennis Bilde - Morten Bilde | B9: 86 | C9: -167 | D9: 176 | E9: 399 | F9: -6 | H9: 488 | I9: 4
A10: Henrik Schmidt - Jesper Bechsgaard | B10: -164 | C10: -23 | D10: 143 | E10: 30 | F10: 163 | H10: 149 | I10: 5
A11: Tom Nørgaard - Trine Bilde | B11: 116 | C11: 174 | D11: 71 | E11: 41 | F11: -255 | H11: 147 | I11: 6
A12: Marlene Henneberg - J.O Henneberg | B12: 13 | C12: 129 | D12: 7 | E12: -151 | F12: 96 | H12: 94 | I12: 7
A13: Peter Jepsen - Maika Cilleborg Bilde | B13: -54 | C13: 5 | D13: 117 | E13: -103 | F13: 22 | H13: -13 | I13: 8
A14: Camilla Bo Krefeld - Johan Hammelev | B14: -148 | C14: -296 | D14: 196 | E14: -152 | F14: 382 | H14: -18 | I14: 9
A15: Benny Marquart - Keld Grann | B15: 142 | C15: -118 | D15: -135 | E15: 67 | F15: -40 | H15: -84 | I15: 10
A16: Niels Krøjgaard - Lars Peter Damgaard | B16: -137 | C16: -2 | D16: 161 | E16: -332 | F16: 21 | H16: -289 | I16: 11
A17: Rasmus Rask Jepsen - Søren Cilleborg Bilde | B17: -28 | C17: -122 | D17: -107 | E17: -255 | F17: 187 | H17: -325 | I17: 12
A18: Bas van Engelen - Marlene Holm Christensen | B18: 134 | C18: -271 | D18: -240 | E18: 140 | F18: -261 | H18: -498 | I18: 13
A19: H K Sørensen - Niels Henriksen | B19: 205 | C19: 58 | D19: -254 | E19: -336 | F19: -175 | H19: -502 | I19: 14
A20: Jørgen Cilleborg Hansen - Steen Schou | B20: -229 | C20: -106 | D20: -223 | E20: 90 | F20: -102 | H20: -570 | I20: 15
A21: Morten Stege - Nils Mønsted | B21: -484 | C21: 221 | D21: -88 | E21: -249 | F21: -72 | H21: -672 | I21: 16
B22: =SUM(B6:B21) -> 0 | C22: =SUM(C6:C21) -> 0 | D22: =SUM(D6:D21) -> 0 | E22: =SUM(E6:E21) -> 0 | F22: =SUM(F6:F21) -> 0 | H22: =SUM(H6:H21) -> 0

Sheet RR2
A1: Multi, RR2
E3: 1 | F3: 2 | G3: 3 | H3: 4 | I3: 5 | J3: 6 | K3: 7 | L3: 8 | M3: 9 | N3: 10 | O3: 11 | P3: 12 | Q3: 13 | R3: 14 | T3: Total | U3: Placering
A5: Henrik Caspersen - Jens Kofoed | E5: 2.75 | F5: 18.91 | G5: 6.83 | H5: 14.51 | I5: 12.03 | J5: 14.62 | K5: 12.08 | L5: 16.26 | M5: 9.25 | N5: 9.31 | O5: 7.69 | P5: 6.33 | Q5: 11.59 | R5: 4.87 | T5: =AVERAGE(E5:R5) -> 10.50214286 | U5: 6
A6: Marlene Henneberg - J.O Henneberg | E6: 7.7 | F6: 16.06 | G6: 14.4 | H6: 7.86 | I6: 9.06 | J6: 19.03 | K6: 13.98 | L6: 12.52 | M6: 14.23 | N6: 3.49 | O6: 12.03 | P6: 4.26 | Q6: 12.97 | R6: 11.43 | T6: =AVERAGE(E6:R6) -> 11.35857143 | U6: 2
A8: Tom Nørgaard - Trine Bilde | E8: 9.09 | F8: 4.66 | G8: 5.6 | H8: 5.49 | I8: 10.88 | J8: 14.08 | K8: 5.74 | L8: 3.89 | M8: 4.14 | N8: 3.51 | O8: 8.62 | P8: 17.34 | Q8: 15.39 | R8: 13.95 | T8: =AVERAGE(E8:R8) -> 8.741428571 | U8: 15
A9: H K Sørensen - Niels Henriksen | E9: 11.27 | F9: 10.02 | G9: 13.17 | H9: 12.14 | I9: 8.17 | J9: 12.73 | K9: 8.99 | L9: 9 | M9: 6.8 | N9: 11.41 | O9: 14.39 | P9: 4.36 | Q9: 13.59 | R9: 6.16 | T9: =AVERAGE(E9:R9) -> 10.15714286 | U9: 8
A11: Benny Marquart - Keld Grann | E11: 8.73 | F11: 15.34 | G11: 7.24 | H11: 8.07 | I11: 10.58 | J11: 6.35 | K11: 11.53 | L11: 5.66 | M11: 7.55 | N11: 15.17 | O11: 9.8 | P11: 5.12 | Q11: 7.03 | R11: 15.13 | T11: =AVERAGE(E11:R11) -> 9.521428571 | U11: 9
A12: Henrik Schmidt - Jesper Bechsgaard | E12: 10.91 | F12: 9.98 | G12: 5.06 | H12: 7.48 | I12: 11.67 | J12: 7.31 | K12: 8.54 | L12: 2.56 | M12: 8.29 | N12: 14.88 | O12: 8.88 | P12: 15.67 | Q12: 8.41 | R12: 8.57 | T12: =AVERAGE(E12:R12) -> 9.157857143 | U12: 12
A14: Niels Krøjgaard - Lars Peter Damgaard | E14: 12.3 | F14: 1.09 | G14: 16.95 | H14: 7.82 | I14: 11.19 | J14: 7.62 | K14: 8.47 | L14: 17.44 | M14: 15.86 | N14: 8.59 | O14: 17.17 | P14: 9.56 | Q14: 8.68 | R14: 12.05 | T14: =AVERAGE(E14:R14) -> 11.05642857 | U14: 4
A15: Jan Pedersen - Mads Krøjgaard | E15: 17.25 | F15: 3.94 | G15: 10.96 | H15: 8.53 | I15: 12.02 | J15: 9.72 | K15: 11.46 | L15: 14.34 | M15: 13.2 | N15: 16.49 | O15: 7.98 | P15: 9.21 | Q15: 18.51 | R15: 3.71 | T15: =AVERAGE(E15:R15) -> 11.23714286 | U15: 3
A17: Jørgen Cilleborg Hansen - Steen Schou | E17: 8.07 | F17: 10.38 | G17: 13.08 | H17: 13.17 | I17: 8.33 | J17: 13.65 | K17: 14.26 | L17: 11 | M17: 13.34 | N17: 3.68 | O17: 12.31 | P17: 15.74 | Q17: 11.32 | R17: 16.29 | T17: =AVERAGE(E17:R17) -> 11.75857143 | U17: 1
A18: Bas van Engelen - Marlene Holm Christensen | E18: 7.36 | F18: 15.02 | G18: 12.47 | H18: 7.81 | I18: 9.42 | J18: 12.69 | K18: 11.01 | L18: 16.11 | M18: 16.41 | N18: 6.07 | O18: 7.97 | P18: 13.67 | Q18: 1.49 | R18: 7.95 | T18: =AVERAGE(E18:R18) -> 10.38928571 | U18: 7
A20: Lars Tofte - Emil Jepsen | E20: 7.46 | F20: 4.13 | G20: 14.94 | H20: 11.93 | I20: 11.83 | J20: 5.92 | K20: 6.02 | L20: 3.74 | M20: 3.59 | N20: 16.32 | O20: 12.02 | P20: 10.44 | Q20: 11.69 | R20: 12.82 | T20: =AVERAGE(E20:R20) -> 9.489285714 | U20: 10
A21: Dennis Bilde - Morten Bilde | E21: 13.88 | F21: 11.29 | G21: 12.76 | H21: 12.52 | I21: 9.12 | J21: 7.27 | K21: 7.92 | L21: 7.43 | M21: 6.66 | N21: 13.93 | O21: 2.83 | P21: 10.79 | Q21: 5.03 | R21: 5.69 | T21: =AVERAGE(E21:R21) -> 9.08 | U21: 13
A23: Peter Jepsen - Maika Cilleborg Bilde | E23: 12.64 | F23: 9.62 | G23: 9.04 | H23: 12.18 | I23: 7.97 | J23: 0.97 | K23: 9.81 | L23: 4.85 | M23: 11.71 | N23: 4.83 | O23: 11.38 | P23: 15.64 | Q23: 14.97 | R23: 7.18 | T23: =AVERAGE(E23:R23) -> 9.485 | U23: 11
A24: Rasmus Rask Jepsen - Søren Cilleborg Bilde | E24: 11.93 | F24: 4.98 | G24: 3.05 | H24: 11.47 | I24: 10.94 | J24: 5.38 | K24: 7.65 | L24: 10.61 | M24: 12.45 | N24: 5.14 | O24: 5.61 | P24: 2.66 | Q24: 8.31 | R24: 14.31 | T24: =AVERAGE(E24:R24) -> 8.177857143 | U24: 16
A26: Morten Stege - Nils Mønsted | E26: 6.12 | F26: 15.87 | G26: 6.92 | H26: 12.19 | I26: 8.81 | J26: 10.28 | K26: 12.35 | L26: 15.15 | M26: 10.75 | N26: 16.51 | O26: 11.12 | P26: 14.88 | Q26: 6.41 | R26: 6.05 | T26: =AVERAGE(E26:R26) -> 10.95785714 | U26: 5
A27: Camilla Bo Krefeld - Johan Hammelev | E27: 12.54 | F27: 8.71 | G27: 7.53 | H27: 6.83 | I27: 7.98 | J27: 12.38 | K27: 10.19 | L27: 9.39 | M27: 5.77 | N27: 10.69 | O27: 10.2 | P27: 4.33 | Q27: 4.61 | R27: 13.84 | T27: =AVERAGE(E27:R27) -> 8.927857143 | U27: 14

Sheet Hold i alt
A1: Klub 32 - Hold 2016/2017
B5: RR1 | C5: RR2 | D5: Total | E5: Placering
A6: Marlene Henneberg | B6: 77.37 | C6: 91.72 | D6: =SUM(B6:C6) -> 169.09 | E6: 1
A7: Niels Krøjgaard | B7: 73.59 | C7: 91.3 | D7: 164.89 | E7: 2
A8: Nils Mønsted | B8: 91.19 | C8: 72.98 | D8: 164.17 | E8: 3
A9: Hans Kristian Sørensen | B9: 91.73 | C9: 64.71 | D9: 156.44 | E9: 4
A10: Jørgen Cilleborg Hansen | B10: 52.71 | C10: 83.91 | D10: 136.62 | E10: 5
A11: Lars Tofte | B11: 77.26 | C11: 55.6 | D11: 132.86 | E11: 6
A12: Peter Jepsen | B12: 63.25 | C12: 40.85 | D12: 104.1 | E12: 7
A13: Keld Grann | B13: 32.9 | C13: 58.93 | D13: 91.83 | E13: 8

Sheet Slutspil
A1: SLUTSPIL
E3: 1 | F3: 2 | G3: 3 | H3: 4 | I3: 5 | J3: 6 | K3: 7 | L3: 8 | N3: Total | O3: Placering
A5: Henrik Caspersen - Jens Kofoed | E5: 4.58 | F5: 9.67 | G5: 14.37 | H5: 14.36 | I5: 15.74 | J5: 12.18 | K5: 10.53 | L5: 18.18 | N5: =AVERAGE(E5:L5) -> 12.45125 | O5: 1
A6: Marlene Henneberg - J.O Henneberg | E6: 2.2 | F6: 12.85 | G6: 12.76 | H6: 8.93 | I6: 16.19 | J6: 9.76 | K6: 9.45 | L6: 12.24 | N6: =AVERAGE(E6:L6) -> 10.5475 | O6: 8
A8: Tom Nørgaard - Trine Bilde | E8: 17.8 | F8: 10.33 | G8: 7.24 | H8: 5.64 | I8: 7.28 | J8: 15.14 | K8: 4.65 | L8: 6.2 | N8: =AVERAGE(E8:L8) -> 9.285 | O8: 11
A9: H K Sørensen - Niels Henriksen | E9: 15.42 | F9: 7.15 | G9: 5.63 | H9: 11.07 | I9: 5.37 | J9: 9.54 | K9: 2.19 | L9: 6.62 | N9: =AVERAGE(E9:L9) -> 7.87375 | O9: 13
A11: Benny Marquart - Keld Grann | E11: 4.74 | F11: 8.06 | G11: 9.8 | H11: 14.31 | I11: 9.86 | J11: 11.47 | K11: 14.95 | L11: 14.73 | N11: =AVERAGE(E11:L11) -> 10.99 | O11: 6
A12: Henrik Schmidt - Jesper Bechsgaard | E12: 5.68 | F12: 7.93 | G12: 5.38 | H12: 13.17 | I12: 13.66 | J12: 7.77 | K12: 11.93 | L12: 10.14 | N12: =AVERAGE(E12:L12) -> 9.4575 | O12: 10
A14: Niels Krøjgaard - Lars Peter Damgaard | E14: 13.16 | F14: 10.8 | G14: 8.03 | H14: 8.04 | I14: 12.72 | J14: 10.46 | K14: 15.35 | L14: 13.38 | N14: =AVERAGE(E14:L14) -> 11.4925 | O14: 5
A15: Jan Pedersen - Mads Krøjgaard | E15: 15.51 | F15: 13.15 | G15: 15.44 | H15: 3.11 | I15: 14.63 | J15: 4.86 | K15: 17.81 | L15: 13.8 | N15: =AVERAGE(E15:L15) -> 12.28875 | O15: 2
A17: Jørgen Cilleborg Hansen - Steen Schou | E17: 15.26 | F17: 12.07 | G17: 14.62 | H17: 5.69 | I17: 4.04 | J17: 13.21 | K17: 13.98 | L17: 15.87 | N17: =AVERAGE(E17:L17) -> 11.8425 | O17: 3
A18: Bas van Engelen - Marlene Holm Christensen | E18: 14.32 | F18: 11.94 | G18: 10.2 | H18: 6.83 | I18: 5.49 | J18: 6.32 | K18: 13.45 | L18: 14.95 | N18: =AVERAGE(E18:L18) -> 10.4375 | O18: 9
A20: Lars Tofte - Emil Jepsen | E20: 16.94 | F20: 14.61 | G20: 11.91 | H20: 8.81 | I20: 15.96 | J20: 13.68 | K20: 6.02 | L20: 5.05 | N20: =AVERAGE(E20:L20) -> 11.6225 | O20: 4
A21: Dennis Bilde - Morten Bilde | E21: 11.27 | F21: 15.29 | G21: 16.51 | H21: 10.44 | I21: 14.51 | J21: 6.79 | K21: 6.55 | L21: 4.13 | N21: =AVERAGE(E21:L21) -> 10.68625 | O21: 7
A23: Peter Jepsen - Maika Cilleborg Bilde | E23: 3.06 | F23: 4.71 | G23: 8.09 | H23: 9.56 | I23: 10.14 | J23: 12.23 | K23: 8.07 | L23: 5.27 | N23: =AVERAGE(E23:L23) -> 7.64125 | O23: 14
A24: Rasmus Rask Jepsen - Søren Cilleborg Bilde | E24: 8.73 | F24: 5.39 | G24: 3.49 | H24: 11.19 | I24: 6.34 | J24: 8.53 | K24: 5.05 | L24: 9.86 | N24: =AVERAGE(E24:L24) -> 7.3225 | O24: 16
A26: Morten Stege - Nils Mønsted | E26: 6.84 | F26: 6.85 | G26: 4.56 | H26: 11.96 | I26: 3.81 | J26: 7.82 | K26: 9.47 | L26: 7.76 | N26: =AVERAGE(E26:L26) -> 7.38375 | O26: 15
A27: Camilla Bo Krefeld - Johan Hammelev | E27: 4.49 | F27: 9.2 | G27: 11.97 | H27: 16.89 | I27: 4.26 | J27: 10.24 | K27: 10.55 | L27: 1.82 | N27: =AVERAGE(E27:L27) -> 8.6775 | O27: 12

Sheet Par
A1: Par
B3: 1.aften | C3: 2.aften | D3: 3.aften | E3: 4.aften | F3: 5.aften | H3: Sum | I3: Placering
A5: Jørgen Cilleborg Hansen - Steen Schou | B5: 42 | C5: 32 | D5: 51 | E5: 24 | F5: 5 | H5: =SUM(B5:F5) -> 154 | I5: 1
A6: Tom Nørgaard - Trine Bilde | B6: 30 | C6: -3 | D6: 7 | E6: 21 | F6: 36 | H6: =SUM(B6:F6) -> 91 | I6: 2
A7: Dennis Bilde - Morten Bilde | B7: 38 | C7: -15 | D7: -11 | E7: 38 | F7: 21 | H7: =SUM(B7:F7) -> 71 | I7: 3
A8: Jan Pedersen - Mads Krøjgaard | B8: 6 | C8: 15 | D8: 16 | E8: 8 | F8: -11 | H8: =SUM(B8:F8) -> 34 | I8: 4
A9: Marlene Henneberg - J.O Henneberg | B9: 15 | C9: -6 | D9: -37 | E9: 14 | F9: 32 | H9: =SUM(B9:F9) -> 18 | I9: 5
A10: Niels Krøjgaard - Lars Peter Damgaard | B10: 9 | C10: -2 | D10: -17 | E10: 41 | F10: -26 | H10: =SUM(B10:F10) -> 5 | I10: 6
A11: Henrik Caspersen - Jens Kofoed | B11: 7 | C11: -4 | D11: 32 | E11: 6 | F11: -42 | H11: =SUM(B11:F11) -> -1 | I11: 7
A12: Camilla Bo Krefeld - Johan Hammelev | B12: 15 | C12: -43 | D12: 2 | E12: 22 | F12: 0 | H12: =SUM(B12:F12) -> -4 | I12: 8
A13: Morten Stege - Nils Mønsted | B13: -20 | C13: -9 | D13: 33 | E13: -21 | F13: 12 | H13: =SUM(B13:F13) -> -5 | I13: 9
A14: Benny Marquart - Keld Grann | B14: 4 | C14: 27 | D14: 15 | E14: -63 | F14: -10 | H14: =SUM(B14:F14) -> -27 | I14: 10
A15: Henrik Schmidt - Jesper Bechsgaard | B15: 2 | C15: 21 | D15: -21 | E15: -19 | F15: -21 | H15: =SUM(B15:F15) -> -38 | I15: 11
A16: Lars Tofte - Emil Jepsen | B16: -13 | C16: 12 | D16: -43 | E16: 31 | F16: -27 | H16: =SUM(B16:F16) -> -40 | I16: 12
A17: Bas van Engelen - Marlene Holm Christensen | B17: -41 | C17: 19 | D17: -19 | E17: -11 | F17: 5 | H17: =SUM(B17:F17) -> -47 | I17: 13
A18: Peter Jepsen - Maika Cilleborg Bilde | B18: -25 | C18: -15 | D18: -2 | E18: -23 | F18: 6 | H18: =SUM(B18:F18) -> -59 | I18: 14
A19: H K Sørensen - Niels Henriksen | B19: -28 | C19: 19 | D19: 5 | E19: -73 | F19: 12 | H19: =SUM(B19:F19) -> -65 | I19: 15
A20: Rasmus Rask Jepsen - Søren Cilleborg Bilde | B20: -41 | C20: -44 | D20: -11 | E20: 5 | F20: 8 | H20: =SUM(B20:F20) -> -83 | I20: 16
B21: =SUM(B5:B20) -> 0 | C21: =SUM(C5:C20) -> 4 | D21: =SUM(D5:D20) -> 0 | E21: =SUM(E5:E20) -> 0 | F21: =SUM(F5:F20) -> 0 | H21: =SUM(H5:H20) -> 4

Sheet Grand prix
A1: Grand prix klub 32 (2016-2017)
F3: Intro hold | G3: RR 1 | H3: IMP1 | I3: RR2 | J3: Slutspil | K3: Par | M3: Total | O3: Placering
A5: Jan Pedersen - Mads Krøjgaard | F5: =Intro!X18*4 -> 16 | G5: ='RR1'!U15*7 -> 14 | H5: ='Imp Par'!I8*5 -> 15 | I5: ='RR2'!U15*7 -> 21 | J5: =Slutspil!O15*4 -> 8 | K5: =Par!I8*5 -> 20 | M5: =SUM(F5:L5) -> 94 | O5: 1
A6: Marlene Henneberg - J.O Henneberg | F6: =Intro!X14*4 -> 12 | G6: ='RR1'!U6*7 -> 63 | H6: ='Imp Par'!I12*5 -> 35 | I6: ='RR2'!U6*7 -> 14 | J6: =Slutspil!O6*4 -> 32 | K6: =Par!I9*5 -> 25 | M6: =SUM(F6:L6) -> 181 | O6: 2
A7: Lars Tofte - Emil Jepsen | F7: =Intro!X6*4 -> 4 | G7: ='RR1'!U20*7 -> 28 | H7: ='Imp Par'!I7*5 -> 10 | I7: ='RR2'!U20*7 -> 70 | J7: =Slutspil!O20*4 -> 16 | K7: =Par!I16*5 -> 60 | M7: =SUM(F7:L7) -> 188 | O7: 3
A8: Henrik Caspersen - Jens Kofoed | F8: =Intro!X20*4 -> 48 | G8: ='RR1'!U5*7 -> 56 | H8: ='Imp Par'!I6*5 -> 5 | I8: ='RR2'!U5*7 -> 42 | J8: =Slutspil!O5*4 -> 4 | K8: =Par!I11*5 -> 35 | M8: =SUM(F8:L8) -> 190 | O8: 4
A9: Jørgen Cilleborg Hansen - Steen Schou | F9: =Intro!X11*4 -> 52 | G9: ='RR1'!U17*7 -> 84 | H9: ='Imp Par'!I20*5 -> 75 | I9: ='RR2'!U17*7 -> 7 | J9: =Slutspil!O17*4 -> 12 | K9: =Par!I5*5 -> 5 | M9: =SUM(F9:L9) -> 235 | O9: 5
A10: Dennis Bilde - Morten Bilde | F10: =Intro!X27*4 -> 44 | G10: ='RR1'!U21*7 -> 49 | H10: ='Imp Par'!I9*5 -> 20 | I10: ='RR2'!U21*7 -> 91 | J10: =Slutspil!O21*4 -> 28 | K10: =Par!I7*5 -> 15 | M10: =SUM(F10:L10) -> 247 | O10: 6
A11: Niels Krøjgaard - Lars Peter Damgaard | F11: =Intro!X15*4 -> 20 | G11: ='RR1'!U14*7 -> 98 | H11: ='Imp Par'!I16*5 -> 55 | I11: ='RR2'!U14*7 -> 28 | J11: =Slutspil!O14*4 -> 20 | K11: =Par!I10*5 -> 30 | M11: =SUM(F11:L11) -> 251 | O11: 7
A12: Tom Nørgaard - Trine Bilde | F12: =Intro!X24*4 -> 28 | G12: ='RR1'!U8*7 -> 42 | H12: ='Imp Par'!I11*5 -> 30 | I12: ='RR2'!U8*7 -> 105 | J12: =Slutspil!O8*4 -> 44 | K12: =Par!I6*5 -> 10 | M12: =SUM(F12:L12) -> 259 | O12: 8
A13: Camilla Bo Krefeld - Johan Hammelev | F13: =Intro!X8*4 -> 8 | G13: ='RR1'!U27*7 -> 21 | H13: ='Imp Par'!I14*5 -> 45 | I13: ='RR2'!U27*7 -> 98 | J13: =Slutspil!O27*4 -> 48 | K13: =Par!I12*5 -> 40 | M13: =SUM(F13:L13) -> 260 | O13: 9
A14: Morten Stege - Nils Mønsted | F14: =Intro!X23*4 -> 24 | G14: ='RR1'!U26*7 -> 35 | H14: ='Imp Par'!I21*5 -> 80 | I14: ='RR2'!U26*7 -> 35 | J14: =Slutspil!O26*4 -> 60 | K14: =Par!I13*5 -> 45 | M14: =SUM(F14:L14) -> 279 | O14: 10
A15: H K Sørensen - Niels Henriksen | F15: =Intro!X12*4 -> 36 | G15: ='RR1'!U9*7 -> 7 | H15: ='Imp Par'!I19*5 -> 70 | I15: ='RR2'!U9*7 -> 56 | J15: =Slutspil!O9*4 -> 52 | K15: =Par!I19*5 -> 75 | M15: =SUM(F15:L15) -> 296 | O15: 11
A16: Benny Marquart - Keld Grann | F16: =Intro!X5*4 -> 32 | G16: ='RR1'!U11*7 -> 112 | H16: ='Imp Par'!I15*5 -> 50 | I16: ='RR2'!U11*7 -> 63 | J16: =Slutspil!O11*4 -> 24 | K16: =Par!I14*5 -> 50 | M16: =SUM(F16:L16) -> 331 | O16: 12
A17: Henrik Schmidt - Jesper Bechsgaard | F17: =Intro!X9*4 -> 40 | G17: ='RR1'!U12*7 -> 105 | H17: ='Imp Par'!I10*5 -> 25 | I17: ='RR2'!U12*7 -> 84 | J17: =Slutspil!O12*4 -> 40 | K17: =Par!I15*5 -> 55 | M17: =SUM(F17:L17) -> 349 | O17: 13
A18: Bas van Engelen - Marlene Holm Christensen | F18: =Intro!X17*4 -> 64 | G18: ='RR1'!U18*7 -> 77 | H18: ='Imp Par'!I18*5 -> 65 | I18: ='RR2'!U18*7 -> 49 | J18: =Slutspil!O18*4 -> 36 | K18: =Par!I17*5 -> 65 | M18: =SUM(F18:L18) -> 356 | O18: 14
A19: Peter Jepsen - Maika Cilleborg Bilde | F19: =Intro!X21*4 -> 56 | G19: ='RR1'!U23*7 -> 70 | H19: ='Imp Par'!I13*5 -> 40 | I19: ='RR2'!U23*7 -> 77 | J19: =Slutspil!O23*4 -> 56 | K19: =Par!I18*5 -> 70 | M19: =SUM(F19:L19) -> 369 | O19: 15
A20: Rasmus Rask Jepsen - Søren Cilleborg Bilde | F20: =Intro!X26*4 -> 60 | G20: ='RR1'!U24*7 -> 91 | H20: ='Imp Par'!I17*5 -> 60 | I20: ='RR2'!U24*7 -> 112 | J20: =Slutspil!O24*4 -> 64 | K20: =Par!I20*5 -> 80 | M20: =SUM(F20:L20) -> 467 | O20: 16

Sheet Fremmøde
A1: Fremmøde som samlet par
B3: Introhold | C3: RR1 | D3: Imp | E3: RR2 | F3: Slut | G3: par | I3: Fremmøde% | K3: Fremmøde/antal
A4: Aftener: | B4: 4 | C4: 7 | D4: 5 | E4: 7 | F4: 4 | G4: 5 | K4: =SUM(B4:G4) -> 32
B5: Fremmøde
A6: Camilla Bo Krefeld - Johan Hammelev | B6: 4 | C6: 6 | D6: 5 | E6: 6 | F6: 4 | G6: 5 | I6: =SUM(B6:G6)/$K$4% -> 93.75 | K6: =SUM(B6:G6) -> 30
A7: Morten Stege - Nils Mønsted | B7: 4 | C7: 7 | D7: 5 | E7: 6 | F7: 2 | G7: 5 | I7: =SUM(B7:G7)/$K$4% -> 90.625 | K7: =SUM(B7:G7) -> 29
A8: Marlene Henneberg - J.O Henneberg | B8: 2 | C8: 7 | D8: 5 | E8: 6 | F8: 4 | G8: 5 | I8: =SUM(B8:G8)/$K$4% -> 90.625 | K8: =SUM(B8:G8) -> 29
A9: Lars Tofte - Emil Jepsen | B9: 4 | C9: 7 | D9: 4 | E9: 6 | F9: 4 | G9: 3 | I9: =SUM(B9:G9)/$K$4% -> 87.5 | K9: =SUM(B9:G9) -> 28
A10: Niels Krøjgaard - Lars Peter Damgaard | B10: 4 | C10: 7 | D10: 5 | E10: 5 | F10: 2 | G10: 4 | I10: =SUM(B10:G10)/$K$4% -> 84.375 | K10: =SUM(B10:G10) -> 27
A11: Rasmus Rask Jepsen - Søren Cilleborg Bilde | B11: 3 | C11: 6 | D11: 5 | E11: 6 | F11: 4 | G11: 3 | I11: =SUM(B11:G11)/$K$4% -> 84.375 | K11: =SUM(B11:G11) -> 27
A12: Bas van Engelen - Marlene Holm Christensen | B12: 3 | C12: 6 | D12: 5 | E12: 5 | F12: 4 | G12: 4 | I12: =SUM(B12:G12)/$K$4% -> 84.375 | K12: =SUM(B12:G12) -> 27
A13: Jan Pedersen - Mads Krøjgaard | B13: 3 | C13: 6 | D13: 4 | E13: 5 | F13: 3 | G13: 5 | I13: =SUM(B13:G13)/$K$4% -> 81.25 | K13: =SUM(B13:G13) -> 26
A14: Jørgen Cilleborg Hansen - Steen Schou | B14: 1 | C14: 6 | D14: 4 | E14: 6 | F14: 4 | G14: 5 | I14: =SUM(B14:G14)/$K$4% -> 81.25 | K14: =SUM(B14:G14) -> 26
A15: Henrik Schmidt - Jesper Bechsgaard | B15: 3 | C15: 6 | D15: 4 | E15: 4 | F15: 3 | G15: 5 | I15: =SUM(B15:G15)/$K$4% -> 78.125 | K15: =SUM(B15:G15) -> 25
A16: H K Sørensen - Niels Henriksen | B16: 3 | C16: 6 | D16: 5 | E16: 3 | F16: 3 | G16: 4 | I16: =SUM(B16:G16)/$K$4% -> 75 | K16: =SUM(B16:G16) -> 24
A17: Henrik Caspersen - Jens Kofoed | B17: 0 | C17: 7 | D17: 5 | E17: 6 | F17: 2 | G17: 3 | I17: =SUM(B17:G17)/$K$4% -> 71.875 | K17: =SUM(B17:G17) -> 23
A18: Benny Marquart - Keld Grann | B18: 2 | C18: 4 | D18: 3 | E18: 6 | F18: 4 | G18: 1 | I18: =SUM(B18:G18)/$K$4% -> 62.5 | K18: =SUM(B18:G18) -> 20
A19: Peter Jepsen - Maika Cilleborg Bilde | B19: 3 | C19: 5 | D19: 3 | E19: 3 | F19: 2 | G19: 3 | I19: =SUM(B19:G19)/$K$4% -> 59.375 | K19: =SUM(B19:G19) -> 19
A20: Tom Nørgaard - Trine Bilde | B20: 0 | C20: 5 | D20: 3 | E20: 3 | F20: 3 | G20: 0 | I20: =SUM(B20:G20)/$K$4% -> 43.75 | K20: =SUM(B20:G20) -> 14
A21: Dennis Bilde - Morten Bilde | B21: 0 | C21: 1 | D21: 0 | E21: 0 | F21: 0 | G21: 0 | I21: =SUM(B21:G21)/$K$4% -> 3.125 | K21: =SUM(B21:G21) -> 1
